bitfinex/quotes_ETHUSD_20240730
["timestamp","ask_amount","ask_price","bid_price","bid_amount"]
[1722338142062,2.99535,3338.6,3338.4,0.99]
[1722338142466,5.99069,3338.6,3338.5,0.13421448]
[1722338144013,2.99542,3338.5,3338.2,0.99]
[1722338144518,2.99549,3338.4,3338.2,0.99]
[1722338145079,2.99534,3338.6,3338.2,0.99]
[1722338145896,2.99536,3338.5,3338.2,0.99]
[1722338146412,2.99508,3338.8,3338.4,0.99]
[1722338146582,2.99505,3338.9,3338.6,0.99]
[1722338146789,2.99505,3338.9,3338.8,0.99]
[1722338147484,2.99505,3338.9,3338.6,0.99]
[1722338149410,2.99509,3338.8,3338.6,0.99]
[1722338149909,2.99509,3338.8,3338.4,0.99]
[1722338150120,2.99515,3338.8,3338.4,0.99]
[1722338150285,3.30782644,3339.0,3338.6,0.99]
[1722338150473,4.17482508,3339.0,3338.6,0.99]
[1722338150696,0.31291644,3339.0,3338.6,0.99]
[1722338150900,0.31291644,3339.0,3338.8,0.99]
[1722338153212,0.31291644,3339.0,3338.9,0.13376336]
[1722338154216,2.99477,3339.2,3338.9,0.13376336]
[1722338154949,2.99459,3339.4,3339.0,0.99]
[1722338155667,2.99459,3339.4,3339.1,0.13376336]
[1722338155848,3.30735292,3339.5,3339.1,0.13376336]
[1722338156165,2.99455,3339.4,3339.1,0.13376336]
[1722338156465,3.30734292,3339.5,3339.1,0.13376336]
[1722338157050,2.99456,3339.4,3339.1,0.13376336]
[1722338157259,2.99456,3339.4,3339.0,0.99]
[1722338157551,2.99456,3339.4,3339.1,0.13322969]
[1722338157915,2.99472,3339.2,3339.1,0.13322969]
[1722338158112,2.99472,3339.2,3338.8,0.99]
[1722338158429,2.99477,3339.2,3339.1,0.13320901]
[1722338158761,2.99464,3339.3,3339.1,0.13320901]
[1722338158912,2.99464,3339.3,3338.8,4.18503]
[1722338158913,2.99464,3339.3,3338.8,1.19]
[1722338159113,2.99464,3339.3,3339.2,0.13320901]
[1722338159429,2.99473,3339.2,3338.8,1.19]
[1722338160409,3.3476681,3339.4,3339.0,0.99]
[1722338160658,2.99455,3339.4,3339.0,0.99]
[1722338161765,3.30739292,3339.5,3339.0,3.9849]
[1722338162717,2.99456,3339.4,3339.0,0.99]
[1722338163216,2.9947,3339.3,3338.8,1.39]
[1722338163447,2.9947,3339.3,3338.8,4.38503]
[1722338163627,2.99456,3339.4,3338.9,2.99499]
[1722338164453,2.99456,3339.4,3339.0,0.99]
[1722338165808,4.48330521,3339.5,3339.0,0.99]
[1722338166737,2.99456,3339.4,3339.0,0.99]
[1722338166959,2.99468,3339.3,3339.1,0.12876416]
[1722338168134,2.9946,3339.4,3339.1,0.12876416]
[1722338168859,5.98922,3339.4,3339.1,0.12876416]
[1722338169023,3.98815652,3339.4,3339.1,0.12876416]
[1722338169924,2.99463,3339.3,3339.1,0.12876416]
[1722338170127,2.99469,3339.3,3339.1,0.12876416]
[1722338170472,2.99463,3339.3,3339.1,0.12876416]
[1722338170619,5.98944,3339.2,3339.1,0.12876416]
[1722338170818,5.36858,3339.1,3338.8,1.59]
[1722338171219,2.99488,3339.1,3338.8,1.59]
[1722338171720,5.98978,3339.1,3338.8,1.59]
[1722338171919,2.99488,3339.1,3338.8,1.59]
[1722338172163,6.34373194,3339.3,3338.8,1.59]
[1722338172351,2.99476,3339.2,3338.8,1.59]
[1722338172661,2.99483,3339.1,3338.8,1.59]
[1722338173374,2.99474,3339.2,3339.0,0.99]
[1722338173777,0.31288292,3339.5,3339.0,3.3961]
[1722338173972,3.30738292,3339.5,3339.3,0.99]
[1722338175071,3.30738292,3339.5,3339.4,0.2]
[1722338175275,7.17369121,3339.5,3339.4,0.2]
[1722338177803,4.17919121,3339.5,3339.4,0.2]
[1722338180577,4.17919121,3339.5,3339.4,0.32863595]
[1722338180760,4.17919121,3339.5,3339.4,0.2]
[1722338182404,3.30737292,3339.5,3339.4,0.2]
[1722338183263,3.30737292,3339.5,3339.4,0.32863595]
[1722338184103,0.31288292,3339.5,3339.4,0.32863595]
[1722338191462,2.99411,3339.9,3339.4,5.60944595]
[1722338191711,10.0,3340.0,3339.8,0.99]
[1722338191879,10.0,3340.0,3339.8,3.2763]
[1722338192078,10.0,3340.0,3339.9,5.9882]
[1722338192585,10.0,3340.0,3339.9,41.11669948]
[1722338193213,22.46933,3340.0,3339.9,0.12849948]
[1722338193379,21.722253,3340.0,3339.9,0.12849948]
[1722338193574,2.99446,3339.5,3339.4,0.2]
[1722338193920,5.98892,3339.5,3339.4,0.2]
[1722338194418,17.31104,3339.5,3339.4,0.2]
[1722338194638,11.97996,3338.9,3338.8,0.6]
[1722338194795,16.53487398,3338.9,3338.8,0.6]
[1722338195132,17.34666,3338.9,3338.8,0.6]
[1722338195274,14.35167,3338.9,3338.8,0.6]
[1722338195853,15.83858667,3338.9,3338.8,0.6]
[1722338196047,20.67591811,3338.9,3338.8,0.6]
[1722338196177,17.68092811,3338.9,3338.8,0.6]
[1722338196381,23.33281009,3338.9,3338.8,0.6]
[1722338196689,21.1467537,3338.9,3338.8,0.6]
[1722338197076,5.9925,3337.5,3337.4,0.1471041]
[1722338198619,2.99625,3337.5,3337.4,0.1471041]
[1722338198997,2.99618,3337.6,3337.4,0.1471041]
[1722338199180,2.99618,3337.6,3337.4,0.24032536]
[1722338199836,2.99598,3337.8,3337.4,0.24032536]
[1722338200025,2.99614,3337.7,3337.4,0.24032536]
[1722338200222,2.99598,3337.8,3337.4,0.24032536]
[1722338200406,2.99598,3337.8,3337.4,0.30024476]
[1722338200842,2.99565,3338.2,3337.4,2.56954476]
[1722338201242,2.99585,3338.0,3337.4,5.56587476]
[1722338202051,6.19375259,3338.9,3337.4,5.56585476]
[1722338202052,2.99546,3338.4,3337.4,5.56585476]
[1722338202352,4.32344144,3338.9,3337.6,2.99608]
[1722338202514,5.99105,3338.4,3337.7,3.05592223]
[1722338202698,2.99552,3338.4,3337.7,3.08923126]
[1722338202899,2.99552,3338.4,3337.8,2.99598]
[1722338203121,2.99552,3338.4,3337.9,0.05991188]
[1722338203324,2.99552,3338.4,3337.9,0.09322126]
[1722338204635,5.99104,3338.4,3337.9,0.09322126]
[1722338204841,2.9958,3338.0,3337.9,0.09322126]
[1722338205062,5.9916,3338.0,3337.9,0.09322126]
[1722338205344,2.9958,3338.0,3337.4,0.1471041]
[1722338205504,2.99625,3337.5,3337.4,0.1471041]
[1722338205935,5.9925,3337.5,3337.4,0.1471041]
[1722338206805,2.99625,3337.5,3337.4,0.1471041]
[1722338208278,2.99611,3337.7,3337.4,0.1471041]
[1722338208631,5.99187,3337.9,3337.4,0.1471041]
[1722338208831,2.996,3337.8,3337.4,0.1471041]
[1722338209775,2.99614,3337.7,3337.4,0.1471041]
[1722338210086,2.99594,3337.9,3337.4,0.1471041]
[1722338210374,2.996,3337.8,3337.4,0.1471041]
[1722338211113,2.99591,3337.9,3337.5,0.05992155]
[1722338212928,2.99599,3337.8,3337.5,0.05992155]
[1722338213395,2.99607,3337.7,3337.6,0.08733837]
[1722338213594,2.99599,3337.8,3337.4,0.1471041]
[1722338213838,2.99599,3337.8,3337.6,0.08733837]
[1722338213982,2.99599,3337.8,3337.4,0.1471041]
[1722338214186,2.99599,3337.8,3337.7,0.08733837]
[1722338214404,2.99609,3337.7,3337.4,0.1471041]
[1722338215300,2.99625,3337.5,3337.4,0.1471041]
[1722338215619,2.99622,3337.6,3337.4,0.1471041]
[1722338216526,2.99625,3337.5,3337.4,0.1471041]
[1722338217716,2.99625,3337.5,3337.4,0.3471041]
[1722338217933,2.99594,3337.9,3337.4,0.3471041]
[1722338218219,2.99594,3337.9,3337.5,0.05991833]
[1722338218618,2.99594,3337.9,3337.4,0.3471041]
[1722338218923,2.99608,3337.7,3337.4,0.3471041]
[1722338219079,2.99594,3337.9,3337.4,0.3471041]
[1722338219508,2.99599,3337.8,3337.4,0.3471041]
[1722338220515,2.69255909,3338.2,3337.4,0.3471041]
[1722338220516,5.99246,3337.6,3337.4,0.3471041]
[1722338220718,2.99622,3337.6,3337.4,0.3471041]
[1722338220938,2.99608,3337.7,3337.4,0.3471041]
[1722338221924,2.99608,3337.7,3337.4,0.5471041]
[1722338222279,2.99618,3337.6,3337.4,0.5471041]
[1722338222484,2.99625,3337.5,3337.4,0.5471041]
[1722338222828,5.9925,3337.5,3337.4,0.5471041]
[1722338223533,7.12925,3337.5,3337.4,0.5471041]
[1722338225376,4.133,3337.5,3337.4,0.5471041]
[1722338225580,2.99625,3337.5,3337.4,0.63443008]
[1722338225877,2.99608,3337.7,3337.4,0.63443008]
[1722338226284,2.69260141,3337.8,3337.4,0.63443008]
[1722338226285,2.99616,3337.6,3337.4,0.63443008]
[1722338226775,2.99625,3337.5,3337.4,0.63443008]
[1722338226980,2.99617,3337.6,3337.4,0.63443008]
[1722338227933,5.68865141,3337.8,3337.4,0.63443008]
[1722338227934,0.31360141,3337.8,3337.4,3.63072008]
[1722338228221,2.99589,3337.9,3337.4,3.69064048]
[1722338228621,2.99589,3337.9,3337.4,0.69435048]
[1722338228781,2.99589,3337.9,3337.4,0.63443008]
[1722338228977,2.99593,3337.9,3337.4,3.63075008]
[1722338231158,2.379,3338.2,3337.6,2.9961]
[1722338231317,2.99572,3338.1,3337.6,2.9961]
[1722338231918,2.99572,3338.1,3337.7,0.08745177]
[1722338232928,2.99596,3337.9,3337.4,3.5434341]
[1722338233480,2.99608,3337.7,3337.5,0.08745177]
[1722338233973,2.99599,3337.8,3337.6,0.0874229]
[1722338234143,2.99599,3337.8,3337.4,0.5471041]
[1722338234144,2.99596,3337.9,3337.4,0.5471041]
[1722338234483,2.99608,3337.7,3337.4,0.5471041]
[1722338237857,2.99613,3337.7,3337.4,0.5471041]
[1722338240555,5.99228,3337.7,3337.4,0.5471041]
[1722338240893,2.99613,3337.7,3337.4,0.5471041]
[1722338242178,2.99608,3337.7,3337.4,0.5471041]
[1722338242520,2.9962,3337.6,3337.4,0.5471041]
[1722338243003,2.99596,3337.9,3337.4,0.5471041]
[1722338243181,2.99602,3337.8,3337.4,0.5471041]
[1722338243554,2.99602,3337.8,3337.5,0.08729242]
[1722338243951,2.99602,3337.8,3337.4,0.5471041]
[1722338244151,2.99602,3337.8,3337.6,0.08727426]
[1722338244389,2.99602,3337.8,3337.4,0.5471041]
[1722338244590,2.99602,3337.8,3337.7,0.08727426]
[1722338244775,2.99602,3337.8,3337.4,0.5471041]
[1722338244981,2.99602,3337.8,3337.7,0.08727426]
[1722338245293,2.99602,3337.8,3337.4,3.5434341]
[1722338245467,2.99602,3337.8,3337.7,0.08727426]
[1722338245794,4.87237395,3338.0,3337.7,0.08727426]
[1722338245795,2.9958,3338.0,3337.7,0.08727426]
[1722338246009,7.25119354,3338.2,3337.5,2.3224]
[1722338246162,2.99581,3338.0,3337.8,0.08432624]
[1722338246493,2.99581,3338.0,3337.6,2.99614]
[1722338246996,2.99581,3338.0,3337.7,0.08432624]
[1722338248163,2.99581,3338.0,3337.5,2.3224]
[1722338248501,2.99594,3337.9,3337.8,0.08419254]
[1722338248794,5.99192,3337.9,3337.4,35.5471041]
[1722338249006,2.99603,3337.8,3337.4,35.5471041]
[1722338249581,2.99603,3337.8,3337.4,0.5471041]
[1722338249909,2.99608,3337.7,3337.4,0.5471041]
[1722338250408,2.99599,3337.8,3337.4,0.5471041]
[1722338250972,2.99613,3337.7,3337.4,0.5471041]
[1722338251210,2.99599,3337.8,3337.4,0.5471041]
[1722338251371,2.99612,3337.7,3337.4,0.5471041]
[1722338252007,2.99612,3337.7,3337.4,0.1471041]
[1722338252215,2.99612,3337.7,3337.6,0.2]
[1722338252984,5.99225,3337.7,3337.6,0.2]
[1722338253190,6.98325,3337.7,3337.6,0.2]
[1722338254197,11.41503954,3337.7,3337.6,0.2]
[1722338254720,13.60772582,3337.7,3337.6,0.2]
[1722338255074,13.60809217,3337.7,3337.6,0.2]
[1722338255316,13.6081407,3337.7,3337.6,0.2]
[1722338255515,11.41503954,3337.7,3337.6,0.2]
[1722338256431,11.41503954,3337.7,3337.6,0.4]
[1722338257346,12.80403954,3337.7,3337.6,0.4]
[1722338257813,9.80790954,3337.7,3337.6,0.4]
[1722338260514,9.80790954,3337.7,3337.6,0.6]
[1722338262030,9.80790954,3337.7,3337.6,0.681526]
[1722338263036,11.68740462,3337.7,3337.6,0.681526]
[1722338263541,6.81177954,3337.7,3337.6,0.681526]
[1722338263741,5.18900406,3337.9,3337.6,0.681526]
[1722338263975,4.87525508,3338.1,3337.6,0.681526]
[1722338264194,1.87949508,3338.2,3337.8,2.9959]
[1722338264332,4.87475508,3338.6,3338.1,2.99566]
[1722338264533,2.99526,3338.6,3338.1,2.99566]
[1722338264729,2.99526,3338.6,3338.1,5.99131]
[1722338264966,2.99526,3338.6,3338.2,0.08167868]
[1722338264967,5.9906,3338.6,3338.2,0.08167868]
[1722338265171,2.99526,3338.6,3338.2,0.08167868]
[1722338265675,4.87468147,3338.8,3338.3,2.99552]
[1722338265886,4.6969,3338.9,3338.4,2.99538]
[1722338265887,5.375,3338.9,3338.4,2.99538]
[1722338266037,5.375,3338.9,3338.4,3.07677572]
[1722338266848,5.375,3338.9,3338.4,0.08138572]
[1722338267174,5.375,3338.9,3338.2,2.99555]
[1722338267175,0.7568084,3338.8,3338.2,2.99554]
[1722338267379,5.375,3338.9,3338.5,0.08126196]
[1722338267714,5.375,3338.9,3338.4,2.9954]
[1722338267878,2.99509,3338.8,3338.6,0.08122897]
[1722338268189,5.37499,3338.9,3338.7,0.08122897]
[1722338268336,5.37499,3338.9,3338.4,2.9954]
[1722338268538,5.37499,3338.9,3338.5,0.08122897]
[1722338268876,6.67233297,3338.9,3338.5,0.08122897]
[1722338270360,3.67734297,3338.9,3338.5,3.07656897]
[1722338270546,2.38,3338.9,3338.5,3.07656897]
[1722338271377,2.38,3338.9,3338.6,2.99525]
[1722338271629,0.31355258,3339.0,3338.8,2.99503]
[1722338271769,2.38,3339.3,3338.8,2.99503]
[1722338271970,2.38,3339.3,3338.8,5.38763]
[1722338272209,2.38,3339.3,3338.9,3.07608823]
[1722338272420,2.38,3339.3,3339.0,2.99486]
[1722338272765,2.38,3339.3,3339.1,3.07593823]
[1722338273201,2.38,3339.3,3339.1,3.07588823]
[1722338274931,5.68781302,3339.7,3339.2,2.99472]
[1722338275143,0.8686163,3339.6,3339.2,2.99472]
[1722338275527,3.8630263,3339.6,3339.1,2.99481]
[1722338275754,3.8630263,3339.6,3339.3,0.08113823]
[1722338276033,3.8630263,3339.6,3339.1,2.99481]
[1722338276331,2.99439,3339.6,3339.4,0.08113823]
[1722338276493,2.99439,3339.6,3339.1,2.99476]
[1722338276840,2.99439,3339.6,3339.2,0.08113823]
[1722338281648,2.99439,3339.6,3339.0,2.9949]
[1722338281849,2.99439,3339.6,3339.3,0.08036687]
[1722338282164,2.99439,3339.6,3339.0,2.9949]
[1722338282455,2.99438,3339.6,3339.4,0.08036687]
[1722338282776,2.99438,3339.6,3339.1,2.99477]
[1722338282924,2.99438,3339.6,3339.5,0.08036687]
[1722338283122,2.99438,3339.6,3339.1,2.99477]
[1722338283452,0.99,3339.2,3339.1,2.99477]
[1722338283633,0.31349302,3339.7,3339.4,2.99454]
[1722338283839,0.99,3339.5,3339.4,2.99454]
[1722338285015,2.99419,3339.8,3339.4,2.99454]
[1722338285216,0.99,3339.5,3339.4,2.99454]
[1722338285708,0.99,3339.5,3339.3,2.99463]
[1722338285917,0.99,3339.4,3339.2,2.99472]
[1722338286957,0.99,3339.4,3339.0,2.99484]
[1722338287161,0.99,3339.1,3338.6,2.99524]
[1722338287391,0.99,3339.1,3339.0,5.98975]
[1722338287866,0.99,3339.1,3338.6,37.99524]
[1722338288193,0.99,3339.1,3338.9,0.0802803]
[1722338291375,0.99,3339.1,3338.9,35.0802803]
[1722338291684,0.99,3339.2,3338.9,35.0802803]
[1722338291883,2.99489,3339.1,3338.9,35.0802803]
[1722338292070,2.9949,3339.0,3338.9,35.0802803]
[1722338292275,3.9849,3339.0,3338.9,0.0802803]
[1722338292505,6.9798,3339.0,3338.9,0.0802803]
[1722338292915,2.99517,3338.7,3338.6,35.0]
[1722338293188,2.99517,3338.7,3338.5,2.2583]
[1722338293189,2.99562,3338.2,3338.1,7.46]
[1722338293388,2.99576,3338.1,3337.6,1.0]
[1722338293611,0.99,3338.0,3337.7,35.0]
[1722338294328,0.99,3338.0,3337.7,37.99607]
[1722338294544,0.99,3338.0,3337.8,2.99597]
[1722338295088,0.99,3338.0,3337.9,35.0]
[1722338295284,2.99556,3338.3,3337.9,35.0]
[1722338295589,2.9958,3338.0,3337.9,35.0]
[1722338296513,5.99156,3338.1,3337.9,35.0]
[1722338296715,2.99577,3338.1,3337.9,35.0]
[1722338297631,5.99156,3338.1,3337.9,35.0]
[1722338298024,2.99528,3338.6,3337.9,35.0]
[1722338298530,2.378,3338.7,3337.8,2.99596]
[1722338298935,2.378,3338.7,3337.9,35.0]
[1722338299141,2.378,3338.7,3338.0,2.99579]
[1722338299538,2.99511,3338.8,3338.0,2.99579]
[1722338299865,2.99513,3338.8,3337.9,2.99583]
[1722338300155,2.99513,3338.8,3338.0,40.9916]
[1722338300308,2.99513,3338.8,3338.0,40.99155]
[1722338300508,2.99513,3338.8,3338.1,2.9957]
[1722338300741,2.99518,3338.7,3338.0,37.99575]
[1722338300946,5.3232,3338.9,3338.0,35.0]
[1722338301165,2.3282,3338.9,3338.2,2.99556]
[1722338301311,0.31352092,3339.1,3338.2,0.05990496]
[1722338301515,0.31352092,3339.1,3338.7,2.99516]
[1722338301755,5.47118,3339.3,3338.7,2.99516]
[1722338301905,5.47118,3339.3,3338.5,2.99534]
[1722338302113,2.4765,3339.3,3338.4,2.99539]
[1722338302417,2.69151681,3339.5,3338.9,2.99494]
[1722338302747,5.32822,3339.7,3339.2,2.99471]
[1722338303110,5.32822,3339.7,3339.5,0.2]
[1722338303558,2.99432,3339.7,3339.5,0.2]
[1722338303710,5.09666477,3339.7,3339.5,0.2]
[1722338303909,2.10234477,3339.7,3339.6,0.0797711]
[1722338308262,5.3721,3339.9,3339.5,0.2]
[1722338308775,5.3721,3339.9,3339.6,0.07904539]
[1722338309098,5.3721,3339.9,3339.5,0.2]
[1722338309099,2.378,3339.9,3339.7,0.07904539]
[1722338309425,2.378,3339.9,3339.5,3.1944]
[1722338309737,2.378,3339.9,3339.8,0.07904539]
[1722338309949,15.65103767,3340.0,3339.8,0.07904539]
[1722338309950,10.0,3340.0,3339.8,3.07322539]
[1722338310282,10.0,3340.0,3339.9,3.07301348]
[1722338310866,10.0,3340.0,3339.9,6.06711348]
[1722338311933,10.0,3340.0,3339.9,3.07301348]
[1722338313992,10.0,3340.0,3339.9,0.07891348]
[1722338314192,12.99401,3340.0,3339.9,0.07891348]
[1722338314355,12.99401,3340.0,3339.5,3.19441]
[1722338314556,12.99401,3340.0,3339.5,6.18879]
[1722338314860,12.99401,3340.0,3339.6,3.07302211]
[1722338315085,10.0,3340.0,3339.6,3.07302211]
[1722338316477,12.99402,3340.0,3339.6,0.07866211]
[1722338317055,10.0,3340.0,3339.6,3.0623264]
[1722338317698,12.99406,3340.0,3339.6,3.0623464]
[1722338320601,10.0,3340.0,3339.6,3.0623464]
[1722338323298,0.99,3339.8,3339.6,3.0623464]
[1722338323593,0.99,3339.8,3339.6,0.0679864]
[1722338323797,5.98856,3339.7,3339.6,0.0679864]
[1722338324141,8.98311,3339.6,3339.5,0.2]
[1722338324296,15.38158,3339.6,3339.5,0.2]
[1722338324503,18.38158,3339.6,3339.5,0.2]
[1722338324705,21.19132973,3339.6,3339.5,0.2]
[1722338325002,2.99526,3338.6,3338.0,3.59574]
[1722338325216,2.4579,3338.9,3338.0,0.6]
[1722338325416,5.37298,3339.0,3338.1,0.07604903]
[1722338325417,5.45353,3338.2,3338.1,0.07604903]
[1722338325711,8.44915,3338.2,3338.1,0.07604903]
[1722338325859,5.45352,3338.2,3338.1,0.07604903]
[1722338326198,2.99562,3338.2,3338.1,0.07604903]
[1722338326501,5.99124,3338.2,3338.1,0.07604903]
[1722338326662,2.99562,3338.2,3338.1,0.07604903]
[1722338329217,2.99504,3338.9,3338.3,2.99553]
[1722338329417,2.99486,3339.1,3338.4,2.99537]
[1722338329724,2.99486,3339.1,3338.4,3.07138931]
[1722338329725,2.9949,3339.0,3338.4,3.07138931]
[1722338330026,3.30828661,3339.2,3338.5,2.99535]
[1722338330210,3.30828661,3339.2,3338.6,2.99525]
[1722338330211,0.31348661,3339.2,3338.6,2.99525]
[1722338330522,0.31348661,3339.2,3338.4,0.07601931]
[1722338330523,2.99449,3339.5,3338.8,2.99507]
[1722338330724,2.9946,3339.4,3338.8,2.99502]
[1722338331023,2.9946,3339.4,3338.9,0.07558622]
[1722338331174,2.99448,3339.5,3338.9,0.07558622]
[1722338331379,2.99455,3339.4,3338.9,3.07057622]
[1722338331579,2.99442,3339.6,3339.0,2.99488]
[1722338331778,2.99442,3339.6,3339.0,3.07046209]
[1722338332623,2.2576,3339.7,3339.2,2.99472]
[1722338332927,2.2576,3339.7,3339.2,2.99468]
[1722338333216,3.30763926,3339.8,3339.3,0.07547077]
[1722338333425,2.99441,3339.6,3339.3,0.07547077]
[1722338333579,2.99441,3339.6,3339.0,2.99485]
[1722338333780,2.99441,3339.6,3339.1,2.99476]
[1722338334037,2.99441,3339.6,3339.1,3.07022665]
[1722338334184,2.99441,3339.6,3339.1,0.07546665]
[1722338334506,2.99436,3339.7,3339.1,0.07546665]
[1722338334712,2.99439,3339.6,3339.1,0.07546665]
[1722338334888,2.99439,3339.6,3339.1,0.06970434]
[1722338335238,0.63020593,3339.6,3339.1,0.06970434]
[1722338335416,2.99472,3339.3,3339.1,0.06970434]
[1722338335598,2.99472,3339.3,3338.8,2.99508]
[1722338335779,2.99472,3339.3,3339.2,0.07546413]
[1722338335985,2.99472,3339.3,3338.8,2.99508]
[1722338336488,2.99472,3339.3,3338.9,0.07552185]
[1722338336888,2.99486,3339.1,3338.6,2.99526]
[1722338337090,2.99472,3339.3,3338.8,2.99507]
[1722338337322,2.99472,3339.3,3338.9,0.0755507]
[1722338338321,2.99455,3339.4,3338.9,0.0755507]
[1722338338623,2.99438,3339.6,3338.9,0.0755507]
[1722338338783,2.99438,3339.6,3339.0,2.99489]
[1722338339291,2.99451,3339.5,3339.1,0.07553834]
[1722338340616,2.99438,3339.6,3339.1,3.07032834]
[1722338341540,2.99455,3339.4,3339.1,0.07553834]
[1722338341689,2.9946,3339.4,3339.1,0.07553834]
[1722338341896,2.99468,3339.3,3338.7,2.99513]
[1722338342189,2.99468,3339.3,3338.8,0.0755136]
[1722338342422,2.9945,3339.5,3338.9,2.99494]
[1722338342589,2.99451,3339.5,3338.9,2.99494]
[1722338342990,2.99451,3339.5,3339.0,0.0755136]
[1722338343194,2.99459,3339.4,3339.0,0.0755136]
[1722338343395,2.99469,3339.3,3339.0,0.0755136]
[1722338343828,0.56859493,3339.5,3338.9,2.99499]
[1722338344025,0.56859493,3339.5,3339.1,0.0755136]
[1722338344227,0.56859493,3339.5,3338.9,2.99499]
[1722338344434,2.9946,3339.4,3339.2,0.0755136]
[1722338344612,2.9946,3339.4,3338.8,2.99508]
[1722338344796,2.9946,3339.4,3338.9,2.99498]
[1722338344999,2.9946,3339.4,3338.9,3.0704936]
[1722338345518,2.99464,3339.3,3338.9,0.0755136]
[1722338347838,2.99446,3339.5,3339.0,2.9949]
[1722338348059,2.99455,3339.4,3338.9,2.99499]
[1722338348209,2.99455,3339.4,3339.1,0.07560508]
[1722338348414,2.99455,3339.4,3338.9,2.99499]
[1722338348642,2.99455,3339.4,3339.2,0.07560508]
[1722338348852,2.99455,3339.4,3338.9,2.99499]
[1722338349006,2.99455,3339.4,3339.3,0.07560508]
[1722338349211,3.30768926,3339.8,3339.2,2.99471]
[1722338349447,2.99428,3339.7,3339.3,0.07560508]
[1722338349952,2.99428,3339.7,3339.4,0.2]
[1722338350650,2.99437,3339.6,3339.4,0.2]
[1722338352430,2.99446,3339.5,3339.4,0.2]
[1722338352616,3.85387056,3339.5,3339.4,0.2]
[1722338353459,6.84833056,3339.5,3339.4,0.2]
[1722338354040,6.84833056,3339.5,3339.4,0.4]
[1722338355865,3.85387056,3339.5,3339.4,0.4]
[1722338357053,2.60527562,3339.8,3339.4,0.4]
[1722338357054,5.59952562,3339.8,3339.4,0.4]
[1722338357229,3.30768926,3339.8,3339.4,0.4]
[1722338357631,12.99402,3340.0,3339.5,0.07560507]
[1722338357870,12.99402,3340.0,3339.7,2.99426]
[1722338357871,10.0,3340.0,3339.7,2.99426]
[1722338358088,10.0,3340.0,3339.8,2.99418]
[1722338358378,10.0,3340.0,3339.9,2.9941]
[1722338358753,10.0,3340.0,3339.9,3.06953606]
[1722338359281,10.0,3340.0,3339.9,0.07543606]
[1722338359954,17.526285,3340.0,3339.9,0.07543606]
[1722338360141,17.526285,3340.0,3339.4,0.6]
[1722338360142,2.99416,3339.9,3339.4,0.6]
[1722338360341,2.99432,3339.7,3339.4,0.6]
[1722338360592,2.99432,3339.7,3339.5,0.07530006]
[1722338361154,2.99419,3339.8,3339.5,0.07530006]
[1722338362578,2.9941,3339.9,3339.5,0.07530006]
[1722338362902,2.99419,3339.8,3339.5,0.07530006]
[1722338363457,12.99404,3340.0,3339.5,3.06975006]
[1722338363659,10.0,3340.0,3339.6,2.99436]
[1722338363964,10.0,3340.0,3339.7,0.07541133]
[1722338363965,12.99401,3340.0,3339.7,0.07541133]
[1722338364368,12.99401,3340.0,3339.5,5.34924]
[1722338364682,12.99401,3340.0,3339.6,2.99436]
[1722338364683,10.0,3340.0,3339.6,2.99436]
[1722338364860,10.0,3340.0,3339.7,0.07536599]
[1722338366299,10.0,3340.0,3339.9,2.9941]
[1722338366654,10.0,3340.0,3339.9,3.06944951]
[1722338367462,10.0,3340.0,3339.9,0.07534951]
[1722338367671,10.0,3340.0,3339.9,3.06944951]
[1722338369383,10.0,3340.0,3339.9,6.06354951]
[1722338370568,10.0,3340.0,3339.9,3.06944951]
[1722338377781,10.0,3340.0,3339.9,3.06399873]
[1722338379703,10.0,3340.0,3339.9,6.11797681]
[1722338379896,10.0,3340.0,3339.9,6.05809873]
[1722338380648,10.0,3340.0,3339.9,41.05809873]
[1722338383546,10.0,3340.0,3339.9,6.05809873]
[1722338384155,10.0,3340.0,3339.9,41.05809873]
[1722338384864,10.0,3340.0,3339.9,46.35209873]
[1722338386247,10.0,3340.0,3339.9,49.35209873]
[1722338388650,10.0,3340.0,3339.9,14.35209873]
[1722338389373,10.0,3340.0,3339.9,49.35209873]
[1722338390680,10.0,3340.0,3339.9,52.34619873]
[1722338391175,10.0,3340.0,3339.9,52.89619873]
[1722338392383,10.0,3340.0,3339.9,49.90209873]
[1722338392678,10.0,3340.0,3339.9,50.10209873]
[1722338394896,10.0,3340.0,3339.9,46.55799873]
[1722338395097,10.0,3340.0,3339.9,44.25809873]
[1722338395766,10.0,3340.0,3339.9,47.25219873]
[1722338396082,10.0,3340.0,3339.9,44.25809873]
[1722338396861,10.0,3340.0,3339.9,44.45809873]
[1722338399598,10.0,3340.0,3339.9,9.45809873]
[1722338400305,10.0,3340.0,3339.9,44.45809873]
[1722338400975,10.0,3340.0,3339.9,44.65809873]
[1722338403374,10.0,3340.0,3339.9,41.66399873]
[1722338403607,10.0,3340.0,3339.9,6.66399873]
[1722338404110,12.99401,3340.0,3339.9,0.66989873]
[1722338404257,16.72407,3340.0,3339.9,0.66989873]
[1722338404805,16.72407,3340.0,3339.9,0.67419539]
[1722338405099,16.72407,3340.0,3339.9,0.87419539]
[1722338405259,19.71808,3340.0,3339.9,0.8]
[1722338405459,16.72407,3340.0,3339.9,0.8]
[1722338405703,16.72407,3340.0,3339.9,0.87419539]
[1722338406078,12.4984,3340.0,3339.9,0.87419539]
[1722338406699,10.0,3340.0,3339.9,0.87419539]
[1722338407582,10.0,3340.0,3339.9,3.86829539]
[1722338409063,10.0,3340.0,3339.9,4.06829539]
[1722338411976,12.2947,3340.0,3339.9,1.07419539]
[1722338412166,16.27871,3340.0,3339.9,1.07419539]
[1722338412594,21.19997,3340.0,3339.9,1.07419539]